bitfinex/quotes_ETHUSD_20260119
["timestamp","ask_amount","ask_price","bid_price","bid_amount"]
[1768814302438,0.92785833,3208.8,3208.0,0.90072085]
[1768814303439,4.04787517,3209.0,3208.0,0.90072085]
[1768814303638,0.00080056,3209.0,3208.2,0.99910146]
[1768814303947,0.93162392,3209.0,3208.4,0.99910146]
[1768814305935,0.00080056,3209.0,3208.4,0.99910146]
[1768814306258,3.11705028,3209.0,3208.4,0.99910146]
[1768814306442,6.2333,3209.0,3208.4,0.99910146]
[1768814306642,3.11705028,3209.0,3208.4,0.99910146]
[1768814307025,3.62905028,3209.0,3208.4,0.99910146]
[1768814307450,3.62906066,3209.0,3208.4,0.99910146]
[1768814308041,0.51280056,3209.0,3208.5,0.99910146]
[1768814308247,1.44362392,3209.0,3208.4,0.41160809]
[1768814308432,4.04788554,3209.0,3208.3,0.99910146]
[1768814308632,0.001,3208.7,3208.4,0.99910146]
[1768814313367,0.93182336,3208.7,3208.2,0.99910146]
[1768814313529,0.93182336,3208.7,3208.1,0.002]
[1768814313930,0.71745649,3208.7,3208.2,0.99910146]
[1768814314131,0.001,3208.7,3208.2,0.99910146]
[1768814314632,0.93182336,3208.7,3208.2,0.99910146]
[1768814316181,0.512,3208.6,3208.2,0.99910146]
[1768814317959,0.93182336,3208.7,3208.2,0.99910146]
[1768814318282,0.513,3208.7,3208.2,0.99910146]
[1768814318835,0.513,3208.7,3208.3,0.99910146]
[1768814319574,4.62038859,3208.7,3208.1,0.93119117]
[1768814320063,0.9908421,3208.6,3208.1,0.002]
[1768814320258,0.001,3208.4,3208.1,0.002]
[1768814322190,0.001,3208.4,3208.1,0.93119117]
[1768814325861,0.001,3208.7,3208.2,0.92919117]
[1768814327984,0.001,3208.7,3208.3,0.92919117]
[1768814329599,0.00080056,3209.0,3208.4,0.92919117]
[1768814329804,0.00080056,3209.0,3208.5,0.92919117]
[1768814332100,0.001,3208.7,3208.5,0.92919117]
[1768814332283,0.00080056,3209.0,3208.4,3.11681562]
[1768814332483,0.00080056,3209.0,3208.5,0.92919117]
[1768814336776,0.95626103,3209.0,3208.5,0.92919117]
[1768814337911,0.00080056,3209.0,3208.5,0.92919117]
[1768814338786,3.11703727,3209.0,3208.5,0.92919117]
[1768814339120,0.95546047,3209.5,3208.7,0.93148125]
[1768814339424,0.512,3209.7,3208.7,0.93148125]
[1768814339618,0.95546047,3210.2,3208.9,0.93148125]
[1768814339788,0.95546047,3210.1,3209.1,0.93148125]
[1768814340143,3.11489037,3210.4,3209.0,6.23247116]
[1768814340144,0.95546047,3210.3,3209.3,0.93148125]
[1768814340415,0.95546047,3210.2,3209.3,0.93148125]
[1768814340778,0.512,3210.3,3209.3,0.93148125]
[1768814341487,1.46746047,3210.3,3209.3,0.93148125]
[1768814341906,0.95546047,3210.2,3209.5,0.93148125]
[1768814342102,1.46746047,3210.4,3209.5,0.93148125]
[1768814342698,0.95546047,3211.1,3209.5,0.93148125]
[1768814342890,0.95546047,3210.9,3209.5,0.93148125]
[1768814343124,0.95546047,3210.9,3209.4,9.34754157]
[1768814343125,0.95546047,3210.9,3209.7,0.93148125]
[1768814343292,0.95546047,3210.9,3209.9,0.93148125]
[1768814344013,0.001,3210.0,3209.9,4.04684022]
[1768814344213,0.95546047,3210.7,3210.0,0.93148125]
[1768814344425,0.95546047,3210.7,3209.6,4.04707347]
[1768814344622,0.95546047,3210.5,3209.5,4.04717547]
[1768814344800,0.95546047,3210.3,3209.5,4.04717547]
[1768814345009,0.95546047,3210.3,3209.5,0.93148125]
[1768814345698,0.95546047,3210.3,3208.7,0.002]
[1768814346025,0.95546047,3210.1,3209.0,0.93148125]
[1768814346226,0.95546047,3209.9,3209.0,0.93148125]
[1768814346387,0.95546047,3209.8,3209.0,0.93148125]
[1768814346790,0.95546047,3209.8,3208.7,0.002]
[1768814347724,0.95546047,3209.6,3208.7,0.002]
[1768814348295,0.95546047,3209.4,3208.7,0.002]
[1768814348522,0.95546047,3209.2,3208.7,0.002]
[1768814348826,1.46746047,3209.1,3208.7,0.002]
[1768814350432,4.5836123,3209.1,3208.7,0.002]
[1768814350796,0.512,3209.1,3208.7,0.002]
[1768814350995,4.07147273,3209.3,3208.7,0.002]
[1768814351298,0.512,3209.2,3208.7,0.002]
[1768814351699,7.90623111,3209.3,3208.8,0.93148125]
[1768814352038,0.95546047,3209.2,3208.7,0.002]
[1768814352690,4.07151982,3209.2,3208.7,0.002]
[1768814353536,3.11605935,3209.2,3208.7,0.002]
[1768814353837,0.95546047,3209.1,3208.7,0.002]
[1768814355513,1.46746047,3209.1,3208.7,0.002]
[1768814355852,4.58360833,3209.1,3209.0,0.002]
[1768814356208,0.95546047,3209.0,3208.7,0.002]
[1768814356920,4.07174839,3209.0,3208.7,0.002]
[1768814357121,4.91636555,3209.0,3208.7,0.002]
[1768814357744,1.80007763,3209.0,3208.7,0.002]
[1768814358111,0.84461716,3209.0,3208.7,0.002]
[1768814358327,0.512,3209.0,3208.7,0.93348125]
[1768814358832,0.512,3209.0,3208.7,0.002]
[1768814359005,3.62825384,3209.0,3208.7,0.002]
[1768814359337,4.58371431,3209.0,3208.7,0.002]
[1768814360040,4.07171431,3209.0,3208.7,0.002]
[1768814360220,0.40717143,3208.9,3208.5,0.93148125]
[1768814360821,3.52356546,3208.9,3208.5,0.93148125]
[1768814361322,0.95546047,3208.8,3208.4,0.002]
[1768814361524,0.95546047,3208.6,3208.4,0.002]
[1768814362333,0.95546047,3208.4,3208.1,0.002]
[1768814363254,0.97974821,3208.3,3208.1,0.002]
[1768814363758,0.97974821,3208.4,3208.1,0.002]
[1768814365347,4.09657528,3208.4,3208.1,0.002]
[1768814365658,0.46085753,3208.3,3208.1,0.002]
[1768814366450,1.44060574,3208.3,3208.1,0.002]
[1768814366744,0.97974821,3208.3,3208.1,0.002]
[1768814367557,4.09669742,3208.3,3208.1,0.002]
[1768814367932,0.97974821,3208.2,3208.1,0.002]
[1768814368640,3.6287498,3208.5,3208.1,0.002]
[1768814368641,4.09661141,3208.4,3208.1,0.002]
[1768814368845,4.86913736,3208.4,3208.1,0.002]
[1768814369333,0.97974821,3208.3,3208.1,0.002]
[1768814369730,0.97974821,3208.1,3208.0,1e-08]
[1768814370350,3.11695928,3208.3,3208.0,1e-08]
[1768814370633,0.97974821,3208.2,3207.5,0.96839398]
[1768814370866,0.97974821,3208.0,3207.5,0.00080056]
[1768814371665,0.97974821,3208.0,3207.5,0.96839398]
[1768814372132,0.97974821,3207.9,3207.5,0.96839398]
[1768814372345,0.97974821,3207.9,3207.5,0.00080056]
[1768814372955,0.97974821,3207.9,3207.4,0.002]
[1768814373149,0.97974821,3207.7,3207.4,0.002]
[1768814374049,4.09724939,3207.7,3207.4,0.002]
[1768814374250,0.97974821,3207.7,3207.4,0.002]
[1768814375065,3.11813564,3207.9,3207.4,0.96959342]
[1768814378676,0.00080056,3207.9,3207.4,0.96959342]
[1768814378838,0.00080064,3208.3,3207.5,0.96839406]
[1768814379037,0.00080064,3208.3,3207.7,0.96759342]
[1768814379661,3.11774058,3208.3,3207.7,0.96759342]
[1768814379864,0.91944603,3208.2,3207.5,0.92104504]
[1768814380279,0.001,3207.6,3207.5,0.92104504]
[1768814380465,0.91944603,3208.0,3207.5,1.37623201]
[1768814380670,0.91944603,3208.2,3207.6,0.9202444]
[1768814380974,0.91944603,3208.1,3207.5,0.00080064]
[1768814381179,0.91944603,3208.0,3207.5,0.00080064]
[1768814381744,0.91944603,3208.0,3207.5,0.92104504]
[1768814385146,0.91944603,3208.1,3207.5,0.92104504]
[1768814385903,0.91944603,3208.1,3207.6,0.9202444]
[1768814386896,0.91944603,3208.1,3207.2,0.00080072]
[1768814386897,0.91944603,3207.6,3206.9,0.00080056]
[1768814387098,0.91944603,3207.3,3206.9,0.00080056]
[1768814389283,7.15483183,3207.5,3206.9,0.00080056]
[1768814389488,0.91944603,3207.3,3206.6,0.00080048]
[1768814389691,0.91944603,3207.1,3206.6,0.00080048]
[1768814390563,0.91944603,3207.0,3206.6,0.00080048]
[1768814390767,0.91944603,3207.0,3205.9,0.9210448]
[1768814390768,0.00080048,3206.7,3205.9,0.9210448]
[1768814390961,0.00080048,3206.7,3206.2,0.9202444]
[1768814391184,0.00080048,3206.7,3206.3,0.9202444]
[1768814391789,0.00080048,3206.7,3206.5,0.002]
[1768814392102,0.00080048,3207.0,3206.5,0.9222444]
[1768814393067,0.00080056,3207.3,3206.6,0.9086188]
[1768814393269,0.00080056,3207.3,3206.8,0.90781824]
[1768814395192,0.00080056,3207.3,3206.9,0.90781824]
[1768814395393,0.00080056,3207.3,3207.0,0.90781824]
[1768814395790,0.00080072,3207.6,3207.0,0.90781824]
[1768814397187,0.00080064,3207.9,3207.2,0.90781824]
[1768814397391,0.92238633,3208.3,3207.5,0.90861896]
[1768814397996,0.00080064,3208.3,3207.5,0.90861896]
[1768814398603,0.00080064,3208.3,3207.7,0.90781824]
[1768814399419,0.00080064,3208.3,3207.8,3.11740133]
[1768814399729,3.11753806,3208.7,3207.9,0.90861896]
[1768814399911,3.92500717,3208.7,3207.9,0.90861896]
[1768814400112,4.84659286,3208.7,3207.9,0.90861896]
[1768814400424,0.001,3208.7,3207.9,0.90861896]
[1768814401511,0.001,3208.7,3208.1,0.90781824]
[1768814404527,0.001,3208.4,3208.1,0.90781824]
[1768814408131,0.001,3208.7,3208.1,3.11709021]
[1768814408313,0.001,3208.7,3208.2,0.90781824]
[1768814409604,0.001,3208.7,3208.2,3.11698381]
[1768814409800,0.001,3208.7,3208.3,0.90781824]
[1768814410123,0.00080064,3209.0,3208.3,0.90781824]
[1768814410805,0.00080064,3209.0,3208.5,0.90781824]
[1768814411143,0.00080064,3209.0,3208.7,0.90781824]
[1768814412545,3.11575193,3209.5,3208.7,0.90781824]
[1768814413141,4.54925596,3209.6,3208.9,0.90781824]
[1768814413448,4.03725596,3209.6,3208.9,0.90781824]
[1768814413940,0.92158569,3209.6,3208.9,0.90781824]
[1768814414242,0.92158569,3209.5,3208.9,0.90781824]
[1768814415980,4.03733847,3209.5,3208.9,0.90781824]
[1768814416414,0.92158569,3209.5,3208.9,0.90781824]
[1768814416949,4.03734471,3209.5,3208.9,0.90781824]
[1768814417614,0.92158569,3209.4,3208.9,0.90781824]
[1768814419212,0.92158569,3209.5,3209.0,0.90781824]
[1768814420156,4.0373485,3209.5,3209.0,0.90781824]
[1768814420452,0.92158569,3209.5,3209.0,0.90781824]
[1768814420632,4.03735413,3209.5,3209.0,0.90781824]
[1768814421350,0.92158569,3209.5,3209.0,0.90781824]
[1768814421656,4.03738739,3209.5,3209.0,0.90781824]
[1768814422326,0.92158569,3209.4,3208.7,0.90781824]
[1768814422526,0.92158569,3209.4,3208.7,1.31034694]
[1768814423255,0.92158569,3209.4,3208.7,0.4025287]
[1768814424455,0.90177765,3209.2,3208.7,1.39778696]
[1768814424655,0.90177765,3209.2,3208.7,0.4025287]
[1768814424859,0.90177765,3209.2,3208.6,0.00080072]
[1768814425039,0.90177765,3209.2,3208.6,0.99605898]
[1768814425239,0.90177765,3209.2,3208.6,0.00080072]
[1768814425642,0.90177765,3209.0,3208.6,0.00080072]
[1768814426532,0.512,3209.1,3208.6,0.99605898]
[1768814426737,4.52992549,3209.1,3208.6,0.99605898]
[1768814427262,0.90177765,3209.0,3208.6,0.99605898]
[1768814427650,0.90177765,3209.0,3208.6,0.00080072]
[1768814428352,0.90177765,3209.0,3208.6,0.00280072]
[1768814428734,0.90177765,3209.0,3208.6,0.99805898]
[1768814428933,0.90277765,3209.2,3208.6,0.99805898]
[1768814429249,4.01884225,3209.2,3208.6,0.99805898]
[1768814429835,3.1170646,3209.2,3208.6,0.00280072]
[1768814430033,0.90177765,3209.1,3208.6,0.00280072]
[1768814430233,0.90177765,3209.1,3208.6,0.99805898]
[1768814430435,0.90177765,3209.8,3209.0,0.99525826]
[1768814430663,0.90177765,3209.7,3209.0,0.99525826]
[1768814432772,4.01720814,3209.9,3209.1,0.99525826]
[1768814432972,7.13263948,3209.9,3209.1,0.99525826]
[1768814433134,0.90177765,3209.8,3209.1,0.99525826]
[1768814433661,0.90177765,3209.8,3208.9,3.11629072]
[1768814433866,0.90177765,3209.6,3208.8,0.511]
[1768814434056,0.90177765,3209.6,3208.8,1.50625826]
[1768814434635,0.90177765,3209.6,3208.9,0.99525826]
[1768814434847,0.90177765,3209.5,3208.9,0.99525826]
[1768814435546,0.90177765,3209.5,3208.9,0.46227571]
[1768814435749,0.90177765,3209.5,3209.0,0.99525826]
[1768814437951,0.90177765,3209.5,3208.8,1.50265535]
[1768814438152,0.9240676,3209.4,3208.8,1.50265535]
[1768814438854,0.9240676,3209.4,3208.8,4.61907685]
[1768814439690,0.9240676,3209.4,3208.8,4.61906979]
[1768814439977,0.9240676,3209.4,3209.1,0.002]
[1768814440180,0.001,3209.3,3209.1,0.002]
[1768814440750,0.9240676,3209.8,3209.1,0.99365535]
[1768814441555,0.9240676,3209.7,3209.1,0.99365535]
[1768814442664,0.9240676,3209.7,3209.1,0.97193896]
[1768814442982,0.9240676,3210.1,3209.2,0.99165535]
[1768814443186,4.03923535,3210.1,3209.3,0.99165535]
[1768814443347,0.9240676,3210.0,3209.3,0.99165535]
[1768814443546,4.03942944,3209.9,3209.3,0.99165535]
[1768814443784,0.9240676,3209.9,3209.3,0.99165535]
[1768814445653,3.1154589,3209.8,3209.3,0.99165535]
[1768814445852,0.9240676,3209.8,3209.3,0.99165535]
[1768814447687,0.9240676,3209.7,3209.1,0.002]
[1768814449760,0.9240676,3209.5,3209.1,0.002]
[1768814450988,0.9240676,3209.9,3209.1,0.99365535]
[1768814451188,3.11516775,3210.1,3209.1,0.99365535]
[1768814451485,0.9240676,3210.0,3209.1,0.99365535]
[1768814451889,4.03942944,3209.9,3209.3,0.99165535]
[1768814453387,0.90597607,3209.8,3209.3,0.99165535]
[1768814454493,4.02143562,3209.8,3209.3,0.99165535]
[1768814455161,7.13689517,3209.8,3209.3,0.99165535]
[1768814455386,4.02143562,3209.8,3209.3,0.99165535]
[1768814455795,4.02144463,3209.8,3209.3,0.99165535]
[1768814456404,0.90597607,3209.8,3209.3,0.99165535]
[1768814456993,4.0214477,3209.8,3209.3,0.99165535]
[1768814459488,0.90597607,3209.8,3209.3,0.99165535]
[1768814459687,0.90597607,3209.8,3209.4,0.97949565]
[1768814459892,4.02147091,3209.8,3209.4,0.97949565]
[1768814462901,0.90597607,3209.8,3209.4,0.97949565]
[1768814463209,4.02143507,3209.8,3209.4,0.97949565]
[1768814464611,7.13689407,3209.8,3209.4,0.97949565]
[1768814464985,0.001,3209.5,3209.4,0.97949565]
[1768814468298,0.001,3209.5,3209.3,0.0008]
[1768814468500,0.001,3209.5,3209.3,0.98029565]
[1768814469015,0.90597607,3209.7,3209.3,0.0008]
[1768814470409,4.02158477,3209.7,3209.3,0.0008]
[1768814471300,4.02158477,3209.7,3209.3,0.98029565]
[1768814471503,0.90517607,3209.7,3209.3,0.98029565]
[1768814471813,4.0207335,3209.7,3209.3,0.98029565]
[1768814472113,4.02147055,3209.8,3209.3,0.98029565]
[1768814473234,0.90597607,3209.8,3209.3,0.98029565]
[1768814473541,0.90777607,3210.2,3209.4,0.97949565]
[1768814473730,0.0018,3210.2,3209.5,0.97949565]
[1768814474610,0.0018,3210.2,3209.6,0.97949565]
[1768814474805,0.0018,3210.2,3209.8,0.97949565]
[1768814478439,0.90777607,3210.2,3209.8,0.97949565]
[1768814479305,0.90697607,3210.2,3209.8,0.97949565]
[1768814479832,0.90697607,3210.2,3209.6,0.97949565]
[1768814480249,0.90697607,3210.2,3209.7,0.97949565]
[1768814480445,0.90697607,3210.2,3209.8,1.38900916]
[1768814481444,0.001,3210.2,3209.8,1.38900916]
[1768814481622,0.001,3210.2,3209.8,0.97949565]
[1768814482211,0.001,3210.2,3209.7,0.97949565]
[1768814482212,0.90697607,3210.2,3209.7,0.97949565]
[1768814483744,0.001,3210.2,3209.7,0.97949565]
[1768814486439,0.001,3210.2,3209.5,0.91705938]
[1768814486440,0.96430932,3210.1,3209.5,0.91705938]
[1768814486608,0.96430932,3210.1,3209.6,0.45438843]
[1768814486808,0.96430932,3210.1,3209.6,1.37144781]
[1768814486809,4.07949422,3210.1,3209.6,1.37144781]
[1768814487014,0.96430932,3210.0,3209.6,0.91705938]
[1768814487441,0.96430932,3210.0,3209.5,0.511]
[1768814487641,0.96430932,3210.0,3209.5,1.42805938]
[1768814488242,0.96430932,3210.0,3209.9,0.002]
[1768814488851,0.96530932,3210.2,3209.9,0.002]
[1768814489737,0.001,3210.2,3209.9,0.91905938]
[1768814490045,0.001,3210.2,3209.9,0.002]
[1768814490242,0.96530932,3210.2,3209.9,0.002]
[1768814491087,4.08040831,3210.2,3209.9,0.002]
[1768814491343,0.96430932,3210.1,3209.9,0.002]
[1768814492745,0.001,3210.2,3209.9,0.002]
[1768814492943,0.96530932,3210.2,3209.9,0.002]
[1768814493941,4.08038187,3210.2,3209.9,0.002]
[1768814494149,0.96430932,3210.1,3209.9,0.002]
[1768814496426,0.96430932,3210.1,3209.5,0.002]
[1768814497155,6.23035362,3210.1,3209.5,0.002]
[1768814497361,0.96430932,3210.0,3209.5,0.002]
[1768814497953,0.96430932,3210.0,3209.5,0.91905938]
[1768814498575,0.96430932,3210.0,3209.5,1.37373966]
[1768814498762,4.07966547,3210.0,3209.5,0.91905938]
[1768814500270,4.07966547,3210.0,3209.8,0.002]
[1768814501484,0.95410514,3209.9,3209.8,0.002]
[1768814502166,4.06946698,3209.9,3209.8,0.002]
[1768814502675,0.95410514,3209.9,3209.8,0.002]
[1768814502882,4.06941342,3210.0,3209.8,0.002]
[1768814503085,4.06861342,3210.0,3209.8,0.002]
[1768814503376,0.95410514,3210.0,3209.8,0.002]
[1768814503613,4.06931953,3210.1,3209.8,0.002]
[1768814504643,0.95410514,3210.1,3209.8,0.002]
[1768814505373,3.1161422,3210.2,3209.8,0.002]
[1768814505573,4.07024734,3210.2,3209.8,0.002]
[1768814508082,6.2312844,3210.2,3209.8,0.97537594]
[1768814508372,4.07024734,3210.2,3209.8,0.002]
[1768814508779,0.95510514,3210.2,3209.8,0.97537594]
[1768814509280,4.07019903,3210.2,3209.8,0.97537594]
[1768814509478,0.95510514,3210.2,3209.8,0.97537594]
[1768814509679,4.07018682,3210.2,3209.8,0.97537594]
[1768814509900,4.07018682,3210.2,3209.8,0.002]
[1768814510082,0.001,3210.2,3209.8,0.97537594]
[1768814510254,0.95490514,3210.6,3209.9,0.97337594]
[1768814510450,4.06963017,3210.6,3209.9,0.97337594]
[1768814510652,0.95410514,3210.5,3209.9,0.97337594]
[1768814511594,0.95410514,3210.5,3210.0,1.43363065]
[1768814511773,0.95410514,3210.5,3210.1,0.97337594]
[1768814512176,0.95410514,3210.5,3210.0,0.46025471]
[1768814512385,0.0008,3210.6,3210.1,0.97337594]
[1768814512697,0.0008,3211.0,3210.3,0.97337594]
[1768814512855,0.0008,3211.0,3210.5,0.9006751]
[1768814513054,0.00160208,3211.3,3210.8,0.9006751]
[1768814514164,0.00160208,3211.3,3210.9,0.9006751]
[1768814515400,0.00160208,3211.3,3210.9,4.01500069]
[1768814515596,0.97850193,3211.5,3210.9,5.19402188]
[1768814515892,0.97850193,3211.5,3210.9,5.19562412]
[1768814516094,0.00080104,3211.6,3211.0,0.9006751]
[1768814516400,4.09304743,3211.6,3211.0,0.9006751]
[1768814517463,0.97930297,3211.6,3211.0,0.9006751]
[1768814517668,0.97930297,3211.6,3211.1,0.9006751]
[1768814522423,4.09303618,3211.6,3211.1,0.9006751]
[1768814522575,0.97850193,3211.5,3210.9,0.90227734]
[1768814522906,0.97850193,3211.5,3210.9,1.41327734]
[1768814525697,0.97850193,3211.2,3210.6,0.00080008]
[1768814525924,0.97850193,3211.2,3210.6,0.90147518]
[1768814527124,0.97850193,3211.1,3210.6,0.00080008]
[1768814529411,0.97850193,3211.0,3210.6,0.00080008]
[1768814530625,0.97770193,3211.0,3210.6,0.00080008]
[1768814531438,0.97770193,3211.0,3210.6,0.90147518]
[1768814532313,0.97850193,3211.2,3210.6,0.90147518]
[1768814533018,0.00260224,3211.3,3210.9,0.9006751]
[1768814533218,0.97930297,3211.6,3210.9,0.9022775]
[1768814533219,0.00080104,3211.6,3210.9,0.9022775]
[1768814533734,0.97930297,3211.6,3210.9,0.9022775]
[1768814533938,0.97930297,3211.6,3211.1,0.9006751]
[1768814534554,0.00080104,3211.6,3211.1,0.9006751]
[1768814535308,0.00080104,3211.6,3211.2,0.9006751]
[1768814535847,0.97930297,3211.6,3211.1,0.511]
[1768814536048,0.97930297,3211.6,3211.0,0.511]
[1768814537632,3.11380974,3211.5,3211.0,0.511]
[1768814537816,0.97850193,3211.4,3211.0,0.511]
[1768814541046,4.09241766,3211.4,3210.9,0.9042775]
[1768814542009,0.97850193,3211.4,3210.9,0.9042775]
[1768814542836,4.09245825,3211.4,3210.9,0.9042775]
[1768814543744,0.94394631,3211.3,3210.9,0.0036024]
[1768814543947,0.94394631,3211.2,3210.9,0.0036024]
[1768814544133,0.00080104,3211.6,3211.0,4.65701452]
[1768814544134,0.94474735,3211.6,3211.0,4.65701452]
[1768814544321,0.00080104,3211.6,3211.2,0.98811912]
[1768814545411,0.94474735,3211.6,3211.0,0.98811912]
[1768814546048,0.94474735,3211.6,3211.0,4.10240528]
[1768814546349,0.94394631,3211.5,3211.0,0.98811912]
[1768814546917,0.94394631,3211.5,3210.9,0.0036024]
[1768814548056,0.94394631,3211.4,3210.9,0.0036024]
[1768814548553,0.94474735,3211.6,3211.0,0.98811912]
[1768814549455,0.00080104,3211.6,3211.2,0.99011912]
[1768814550258,0.00080104,3211.6,3211.3,1.39854234]
[1768814550435,0.94474703,3212.0,3211.4,0.98811912]
[1768814550824,0.00080072,3212.0,3211.4,0.98811912]
[1768814551326,0.00080072,3212.0,3211.5,0.98811912]
[1768814551653,0.0008,3212.4,3211.6,0.98811912]
[1768814551839,3.11375057,3212.4,3211.6,0.98891992]
[1768814552040,0.94394631,3212.3,3211.6,0.98891992]
[1768814552239,0.94394631,3212.3,3211.7,0.98811912]
[1768814552444,0.94394631,3212.3,3211.8,1.39838116]
[1768814552953,4.0569846,3212.3,3211.8,1.39838116]
[1768814553158,4.0561846,3212.3,3211.8,0.98811912]
[1768814553319,0.94314631,3212.3,3211.8,0.98811912]
[1768814553646,3.11303427,3212.3,3211.8,0.98811912]
[1768814553851,4.05772231,3212.4,3211.8,0.98811912]
[1768814554167,0.94474631,3212.4,3211.8,0.98811912]
[1768814554342,4.05772666,3212.4,3211.9,1.39828451]
[1768814554528,0.94394631,3212.3,3211.9,0.98811912]
[1768814557055,0.94394631,3212.1,3211.6,0.0008008]
[1768814557230,0.94394631,3212.1,3211.1,4.61329829]
[1768814557433,0.94314631,3211.9,3211.1,1.49911912]
[1768814557770,0.94314631,3211.9,3211.1,4.61330432]
[1768814557942,0.94314631,3211.9,3211.2,1.45253776]
[1768814558139,0.94314631,3211.9,3211.2,3.57846239]
[1768814558452,0.92331711,3211.3,3210.9,0.0036024]
[1768814558810,0.92331711,3211.2,3210.6,0.00080008]
[1768814559286,0.92331711,3210.9,3210.1,0.002]
[1768814559484,0.92331711,3210.7,3210.1,0.002]
[1768814560580,0.92331711,3210.5,3210.1,0.002]
[1768814562680,0.92331711,3210.3,3210.1,0.002]
[1768814564600,0.92251711,3210.3,3210.1,0.002]
[1768814565898,0.92331711,3210.5,3210.1,0.002]
[1768814566098,0.92331711,3210.8,3210.2,0.92938046]
[1768814566262,0.00080008,3211.0,3210.8,0.92858038]
[1768814566459,0.92491951,3211.3,3210.8,0.92858038]
[1768814568567,0.0016024,3211.3,3210.8,0.92858038]
[1768814568898,4.03892354,3211.3,3210.8,0.92858038]
[1768814569102,0.92491951,3211.3,3210.8,0.92858038]
[1768814570862,0.92491951,3211.3,3210.6,0.92938054]
[1768814571062,0.92491951,3211.3,3210.7,0.40441321]
[1768814571463,0.92331711,3211.2,3210.7,0.40441321]
[1768814571662,0.92331711,3211.1,3210.6,0.92938054]
[1768814571891,0.92331711,3211.0,3210.6,0.00080016]
[1768814572190,0.92411727,3211.0,3210.2,0.00080008]
[1768814574307,0.94265441,3210.8,3210.2,0.00080008]
[1768814574502,0.94265441,3210.6,3210.2,0.00080008]
[1768814576409,0.94265441,3210.4,3210.2,0.00080008]
[1768814580515,0.94265441,3210.6,3210.2,0.00080008]
[1768814581504,0.94265441,3210.6,3209.8,0.00280008]
[1768814581918,0.94265441,3210.4,3209.8,0.00280008]
[1768814582233,0.76829576,3210.5,3209.6,0.002]
[1768814582234,0.94345449,3210.2,3209.6,0.002]
[1768814582526,0.94265441,3210.0,3209.6,0.002]
[1768814585053,0.94265441,3209.8,3209.6,0.002]
[1768814586830,3.11528885,3210.0,3209.6,0.002]
[1768814587140,4.05794326,3210.0,3209.6,0.002]
[1768814587344,0.94265441,3209.9,3209.6,0.002]
[1768814589737,0.00080008,3210.2,3209.6,0.9353194]
[1768814590241,3.11548429,3210.6,3209.7,0.9333194]
[1768814590406,3.11548429,3210.6,3209.9,0.9333194]
[1768814590610,0.00080008,3210.6,3209.9,0.9333194]
[1768814590822,0.51280008,3210.6,3209.9,0.9333194]
[1768814591224,1.45545449,3210.6,3209.9,0.9333194]
[1768814592032,4.57014842,3210.6,3209.9,0.9333194]
[1768814592842,0.51280008,3210.6,3210.0,0.9333194]
[1768814593631,4.57016364,3210.6,3210.0,0.9333194]
[1768814593831,4.05816364,3210.6,3210.0,0.9333194]
[1768814594056,0.94265441,3210.5,3210.0,0.9333194]
[1768814595128,0.94265441,3210.5,3209.9,1.33827405]
[1768814595373,0.94265441,3210.5,3209.8,0.00080016]
[1768814596461,0.00080112,3211.6,3210.3,0.9333194]
[1768814596763,0.512,3211.9,3211.4,0.9333194]
[1768814598656,0.512,3211.9,3211.5,0.9333194]
[1768814598818,0.0018008,3212.0,3211.5,0.9333194]
[1768814599024,0.511,3211.9,3211.5,0.9333194]
[1768814599218,0.511,3211.9,3211.4,3.11388164]
[1768814599219,0.511,3211.8,3211.6,0.9333194]
[1768814599435,0.0018008,3212.0,3211.6,0.9333194]
[1768814599648,0.511,3211.9,3211.6,0.9333194]
[1768814599949,0.511,3211.8,3211.6,0.9333194]
[1768814600333,0.511,3211.9,3211.6,0.9333194]
[1768814600833,1.022,3211.9,3211.6,4.04702229]
[1768814601550,1.022,3211.9,3211.6,0.9333194]
[1768814601734,1.022,3211.9,3211.3,3.11396852]
[1768814602063,0.94265441,3211.8,3211.2,0.0008012]
[1768814602274,0.94265441,3211.8,3211.3,4.04729023]
[1768814603623,0.94265441,3211.8,3211.2,3.11486636]
[1768814603838,0.94265441,3211.8,3211.2,4.06619059]
[1768814604182,0.94265441,3211.8,3211.2,0.95212543]
[1768814604470,0.94265441,3211.8,3211.2,0.0008012]
[1768814605362,0.92961893,3211.6,3211.2,0.0008012]
[1768814608857,0.511,3211.5,3211.2,0.0008012]
[1768814609073,0.511,3211.4,3211.2,0.0008012]
[1768814611585,0.511,3211.3,3211.2,0.95212543]
[1768814611794,0.511,3211.4,3211.2,0.95212543]
[1768814612292,0.511,3211.3,3211.2,0.95212543]
[1768814612586,0.92961893,3211.2,3210.2,0.95212439]
[1768814612787,0.92961893,3211.2,3210.3,4.06623295]
[1768814612948,0.51260256,3211.3,3210.6,0.95212447]
[1768814613149,1.02360256,3211.3,3210.6,0.95212447]
[1768814613650,0.51260256,3211.3,3210.6,0.95212447]
[1768814615064,0.51260256,3211.3,3210.8,0.95132423]
[1768814615690,1.44222149,3211.3,3210.8,0.95132423]
[1768814615891,3.62662446,3211.3,3210.8,0.95132423]
[1768814616060,0.92961893,3211.2,3210.6,0.95212447]
[1768814616466,0.92961893,3211.2,3210.6,0.00080024]
[1768814617678,0.92961893,3211.1,3210.6,0.00080024]
[1768814619196,0.92961893,3211.1,3210.6,0.95070441]
[1768814619369,0.511,3211.0,3210.7,0.94990417]
[1768814619570,0.511,3210.9,3210.7,0.94990417]
[1768814620596,0.511,3210.9,3210.6,0.00080024]
[1768814622905,0.511,3210.8,3210.6,0.95070441]
[1768814625198,0.511,3210.8,3210.6,0.00080024]
[1768814626168,0.511,3210.8,3210.6,0.95070441]
[1768814627200,0.511,3210.9,3210.6,4.06536424]
[1768814627395,0.511,3210.9,3210.7,0.94990417]
[1768814627590,0.92418099,3211.3,3210.7,0.94990417]
[1768814627790,0.511,3211.2,3210.7,0.94990417]
[1768814627991,0.92257843,3211.2,3210.6,3.83368193]
[1768814628180,0.511,3211.1,3210.6,4.7835861]
[1768814628385,0.511,3211.1,3210.7,1.73993998]
[1768814628707,0.511,3211.1,3210.7,0.79003581]
[1768814628708,0.92257843,3211.0,3210.7,0.79003581]
[1768814628945,0.92257843,3211.0,3210.6,0.00080024]
[1768814629090,0.92257843,3211.0,3210.6,0.95070441]
[1768814629291,0.92257843,3211.0,3210.6,0.00080024]
[1768814635029,0.90641702,3210.9,3210.6,0.00080024]
[1768814640231,0.90641702,3210.8,3210.6,0.00080024]
[1768814640735,0.511,3210.7,3210.6,0.00080024]
[1768814643418,1.87059841,3210.7,3210.6,0.00080024]